fUSD/lending_fUSD_20250105
["ID","MTS","AMOUNT","RATE_DAILY","PERIOD"]
[347682626,1736057433317,-500.0,9.798e-05,2]
[347682627,1736057433326,-500.0,9.798e-05,2]
[347682628,1736057433336,-500.0,9.798e-05,2]
[347682629,1736057433345,-512.99,9.798e-05,2]
[347682630,1736057433354,-549.27,9.798e-05,2]
[347682631,1736057433364,-500.0,9.798e-05,2]
[347682632,1736057433373,-500.0,9.798e-05,2]
[347682633,1736057433382,-500.0,9.798e-05,2]
[347682634,1736057433391,-500.0,9.798e-05,2]
[347682635,1736057433401,-500.0,9.798e-05,2]
[347682636,1736057433410,-500.0,9.798e-05,2]
[347682637,1736057433420,-500.0,9.798e-05,2]
[347682638,1736057433430,-500.0,9.798e-05,2]
[347682639,1736057433439,-374.2,9.798e-05,2]
[347682640,1736057433448,-500.0,9.798e-05,2]
[347682641,1736057433457,-500.0,9.798e-05,2]
[347682642,1736057433467,-500.0,9.798e-05,2]
[347682643,1736057433476,-500.0,9.798e-05,2]
[347682644,1736057433485,-500.0,9.798e-05,2]
[347682645,1736057433494,-188.53,9.798e-05,2]
[347682646,1736057433504,-500.0,9.798e-05,2]
[347682647,1736057433513,-500.0,9.798e-05,2]
[347682648,1736057433523,-500.0,9.798e-05,2]
[347682649,1736057433532,-500.0,9.798e-05,2]
[347682650,1736057433542,-500.0,9.798e-05,2]
[347682651,1736057433551,-608.89,9.798e-05,2]
[347682652,1736057433561,-500.0,9.798e-05,2]
[347682653,1736057433570,-500.0,9.798e-05,2]
[347682654,1736057433579,-500.0,9.798e-05,2]
[347682655,1736057433589,-562.26,9.798e-05,2]
[347682656,1736057433598,-500.0,9.798e-05,2]
[347682657,1736057433608,-500.0,9.798e-05,2]
[347682658,1736057433617,-317.39400158,9.798e-05,2]
[347682659,1736057433626,-500.0,9.798e-05,2]
[347682660,1736057433635,-502.23,9.798e-05,2]
[347682661,1736057433645,-500.0,9.798e-05,2]
[347682662,1736057433654,-500.0,9.798e-05,2]
[347682663,1736057433663,-500.0,9.798e-05,2]
[347682664,1736057433673,-500.0,9.798e-05,2]
[347682665,1736057433682,-500.0,9.798e-05,2]
[347682666,1736057433691,-500.0,9.798e-05,2]
[347682667,1736057433701,-500.0,9.798e-05,2]
[347682668,1736057433710,-500.0,9.798e-05,2]
[347682669,1736057433719,-500.0,9.798e-05,2]
[347682670,1736057433729,-500.0,9.798e-05,2]
[347682671,1736057433739,-500.0,9.798e-05,2]
[347682672,1736057433748,-500.0,9.798e-05,2]
[347682673,1736057433758,-383.76,9.798e-05,2]
[347682674,1736057433767,-500.0,9.798e-05,2]
[347682675,1736057433776,-642.73,9.798e-05,2]
[347682676,1736057433786,-500.0,9.798e-05,2]
[347682677,1736057433795,-500.0,9.798e-05,2]
[347682678,1736057433805,-500.0,9.798e-05,2]
[347682679,1736057433814,-562.16,9.798e-05,2]
[347682680,1736057433823,-500.0,9.798e-05,2]
[347682681,1736057433833,-500.0,9.798e-05,2]
[347682682,1736057433842,-500.0,9.798e-05,2]
[347682683,1736057433851,-519.85,9.798e-05,2]
[347682684,1736057433860,-585.98,9.798e-05,2]
[347682685,1736057433870,-500.0,9.798e-05,2]
[347682686,1736057433879,-519.56,9.798e-05,2]
[347682687,1736057433890,-500.0,9.798e-05,2]
[347682688,1736057433901,-500.0,9.798e-05,2]
[347682689,1736057433911,-397.78,9.798e-05,2]
[347682690,1736057433921,-500.0,9.798e-05,2]
[347682691,1736057433931,-500.0,9.798e-05,2]
[347682692,1736057433941,-500.0,9.798e-05,2]
[347682693,1736057433950,-500.0,9.798e-05,2]
[347682694,1736057433959,-500.0,9.798e-05,2]
[347682695,1736057433971,-500.0,9.798e-05,2]
[347682696,1736057433980,-500.0,9.798e-05,2]
[347682697,1736057433990,-500.0,9.798e-05,2]
[347682698,1736057434000,-569.44,9.798e-05,2]
[347682699,1736057434010,-350.73274378,9.798e-05,2]
[347682700,1736057434028,-149.26725622,9.798e-05,2]
[347682701,1736057434039,-500.0,9.798e-05,2]
[347682702,1736057434049,-342.91837994,9.798e-05,2]
[347682703,1736057434080,-157.08162006,9.798e-05,2]
[347682704,1736057434090,-500.0,9.798e-05,2]
[347682705,1736057434100,-500.0,9.798e-05,2]
[347682706,1736057434110,-378.71414669,9.798e-05,2]
[347682707,1736057434130,-121.28585331,9.798e-05,2]
[347682708,1736057434141,-500.0,9.798e-05,2]
[347682709,1736057434150,-500.0,9.798e-05,2]
[347682710,1736057434159,-500.62854446,9.798e-05,2]
[347682711,1736057434169,-436.86,9.798e-05,2]
[347682712,1736057434178,-208.49199163,9.798e-05,2]
[347682713,1736057434198,-291.50800837,9.798e-05,2]
[347682714,1736057434207,-241.27,9.798e-05,2]
[347682715,1736057434217,-500.86313,9.798e-05,2]
[347682716,1736057434226,-174.21,9.798e-05,2]
[347682717,1736057434236,-500.0,9.798e-05,2]
[347682718,1736057434246,-500.0,9.798e-05,2]
[347682719,1736057434255,-183.25255673,9.798e-05,2]
[347682725,1736057438032,-316.74744327,9.798e-05,2]
[347682726,1736057438042,-500.0,9.798e-05,2]
[347682727,1736057438052,-511.53,9.798e-05,2]
[347682737,1736057438228,-233.67,9.798e-05,2]
[347682739,1736057438237,-500.0,9.798e-05,2]
[347682741,1736057438247,-500.0,9.798e-05,2]
[347682743,1736057438256,-392.75,9.798e-05,2]
[347682745,1736057438265,-500.0,9.798e-05,2]
[347682747,1736057438274,-341.04462507,9.798e-05,2]
[347682750,1736057438292,-158.95537493,9.798e-05,2]
[347682753,1736057438301,-500.0,9.798e-05,2]
[347682756,1736057438310,-194.03598651,9.798e-05,2]
[347682918,1736057439836,-305.96401349,9.798e-05,2]
[347682920,1736057439846,-37.92441496,9.798e-05,2]
[347682922,1736057439858,-462.07558504,9.798e-05,2]
[347682924,1736057439867,-188.92441496,9.798e-05,2]
[347682939,1736057440006,-311.07558504,9.798e-05,2]
[347682941,1736057440015,-560.6,9.798e-05,2]
[347682942,1736057440025,-419.87449981,9.798e-05,2]
[347682949,1736057442871,-500.0,9.797e-05,2]
[347682950,1736057442881,-80.12550019,9.798e-05,2]
[347682951,1736057442892,-500.0,9.798e-05,2]
[347682952,1736057442903,-500.0,9.798e-05,2]
[347682953,1736057442913,-500.0,9.798e-05,2]
[347682954,1736057442922,-199.51,9.798e-05,2]
[347682955,1736057442932,-500.0,9.798e-05,2]
[347682956,1736057442942,-500.0,9.798e-05,2]
[347682957,1736057442951,-500.0,9.798e-05,2]
[347682958,1736057442960,-500.0,9.798e-05,2]
[347682959,1736057442970,-500.0,9.798e-05,2]
[347682960,1736057442980,-500.0,9.798e-05,2]
[347682961,1736057442989,-500.0,9.798e-05,2]
[347682962,1736057442998,-500.0,9.798e-05,2]
[347682963,1736057443008,-500.0,9.798e-05,2]
[347682964,1736057443017,-500.0,9.798e-05,2]
[347682965,1736057443027,-500.0,9.798e-05,2]
[347682966,1736057443036,-500.0,9.798e-05,2]
[347682967,1736057443045,-500.0,9.798e-05,2]
[347682968,1736057443055,-500.0,9.798e-05,2]
[347682969,1736057443064,-500.63,9.798e-05,2]
[347682970,1736057443073,-500.0,9.798e-05,2]
[347682971,1736057443083,-500.0,9.798e-05,2]
[347682972,1736057443092,-500.0,9.798e-05,2]
[347682973,1736057443101,-873.14,9.798e-05,2]
[347682974,1736057443111,-500.0,9.798e-05,2]
[347682975,1736057443120,-209.31,9.798e-05,2]
[347682976,1736057443130,-200.58,9.798e-05,2]
[347682977,1736057443139,-59.20424403,9.798e-05,2]
[347682978,1736057443155,-440.79575597,9.798e-05,2]
[347682979,1736057443165,-500.0,9.798e-05,2]
[347682980,1736057443174,-500.0,9.798e-05,2]
[347682981,1736057443185,-500.0,9.798e-05,2]
[347682982,1736057443194,-500.0,9.798e-05,2]
[347682983,1736057443204,-500.0,9.798e-05,2]
[347682984,1736057443213,-500.0,9.798e-05,2]
[347682986,1736057443222,-500.0,9.798e-05,2]
[347682988,1736057443231,-500.0,9.798e-05,2]
[347682990,1736057443241,-500.0,9.798e-05,2]
[347682992,1736057443250,-412.22,9.798e-05,2]
[347682994,1736057443264,-411.66,9.798e-05,2]
[347682997,1736057443279,-343.54,9.798e-05,2]
[347682999,1736057443292,-500.0,9.798e-05,2]
[347683001,1736057443303,-185.54,9.798e-05,2]
[347683004,1736057443316,-171.26,9.798e-05,2]
[347683006,1736057443330,-500.0,9.798e-05,2]
[347683008,1736057443342,-500.0,9.798e-05,2]
[347683011,1736057443356,-500.0,9.798e-05,2]
[347683014,1736057443370,-1685.28,9.798e-05,2]
[347683016,1736057443383,-500.0,9.798e-05,2]
[347683018,1736057443394,-500.0,9.798e-05,2]
[347683020,1736057443404,-500.0,9.798e-05,2]
[347683023,1736057443416,-500.0,9.798e-05,2]
[347683025,1736057443430,-500.0,9.798e-05,2]
[347683027,1736057443443,-500.0,9.798e-05,2]
[347683029,1736057443456,-500.0,9.798e-05,2]
[347683032,1736057443469,-500.0,9.798e-05,2]
[347683034,1736057443482,-500.0,9.798e-05,2]
[347683036,1736057443495,-500.0,9.798e-05,2]
[347683038,1736057443507,-500.0,9.798e-05,2]
[347683040,1736057443521,-500.0,9.798e-05,2]
[347683043,1736057443533,-445.74335557,9.798e-05,2]
[347683045,1736057443550,-652.519868,9.798e-05,2]
[347683052,1736057443603,-60.94677643,9.798e-05,2]
[347683054,1736057443614,-500.0,9.798e-05,2]
[347683056,1736057443625,-500.0,9.798e-05,2]
[347683058,1736057443636,-500.0,9.798e-05,2]
[347683061,1736057443652,-500.0,9.798e-05,2]
[347683063,1736057443665,-500.0,9.798e-05,2]
[347683066,1736057443675,-482.31696872,9.798e-05,2]
[347683083,1736057445932,-17.68303128,9.798e-05,2]
[347683084,1736057445945,-500.0,9.798e-05,2]
[347683085,1736057445957,-500.0,9.798e-05,2]
[347683086,1736057445970,-500.0,9.798e-05,2]
[347683087,1736057445982,-511.38,9.798e-05,2]
[347683088,1736057445994,-500.0,9.798e-05,2]
[347683089,1736057446006,-500.0,9.798e-05,2]
[347683090,1736057446019,-500.0,9.798e-05,2]
[347683091,1736057446031,-500.0,9.798e-05,2]
[347683092,1736057446041,-500.0,9.798e-05,2]
[347683093,1736057446051,-500.0,9.798e-05,2]
[347683094,1736057446061,-500.0,9.798e-05,2]
[347683095,1736057446070,-500.0,9.798e-05,2]
[347683096,1736057446080,-927.11,9.798e-05,2]
[347683097,1736057446089,-500.0,9.798e-05,2]
[347683098,1736057446098,-56.52840119,9.798e-05,2]
[347683099,1736057446110,-443.47159881,9.798e-05,2]
[347683100,1736057446119,-500.0,9.798e-05,2]
[347683101,1736057446129,-42.82986173,9.798e-05,2]
[347683108,1736057446408,-457.17013827,9.798e-05,2]
[347683109,1736057446420,-500.0,9.798e-05,2]
[347683110,1736057446430,-500.0,9.798e-05,2]
[347683111,1736057446441,-500.0,9.798e-05,2]
[347683112,1736057446451,-500.0,9.798e-05,2]
[347683113,1736057446460,-500.0,9.798e-05,2]
[347683114,1736057446469,-500.0,9.798e-05,2]
[347683115,1736057446480,-500.0,9.798e-05,2]
[347683117,1736057446489,-500.0,9.798e-05,2]
[347683119,1736057446499,-220.89,9.798e-05,2]
[347683121,1736057446508,-500.0,9.798e-05,2]
[347683123,1736057446517,-593.54777332,9.798e-05,2]
[347683124,1736057446536,-46.33641468,9.798e-05,2]
[347683125,1736057446546,-500.0,9.798e-05,2]
[347683126,1736057446555,-500.0,9.798e-05,2]
[347683127,1736057446563,-500.0,9.798e-05,2]
[347683128,1736057446572,-500.0,9.798e-05,2]
[347683129,1736057446581,-500.0,9.798e-05,2]
[347683130,1736057446590,-500.0,9.798e-05,2]
[347683131,1736057446599,-500.0,9.798e-05,2]
[347683132,1736057446608,-500.0,9.798e-05,2]
[347683133,1736057446617,-156.211275,9.798e-05,2]
[347683134,1736057446626,-548.02900469,9.798e-05,2]
[347683135,1736057446636,-500.0,9.798e-05,2]
[347683136,1736057446645,-500.0,9.798e-05,2]
[347683137,1736057446654,-500.0,9.798e-05,2]
[347683138,1736057446664,-500.0,9.798e-05,2]
[347683139,1736057446673,-500.0,9.798e-05,2]
[347683140,1736057446683,-500.0,9.798e-05,2]
[347683141,1736057446692,-500.0,9.798e-05,2]
[347683142,1736057446701,-155.848017,9.798e-05,2]
[347683143,1736057446710,-500.0,9.798e-05,2]
[347683144,1736057446719,-500.0,9.798e-05,2]
[347683145,1736057446729,-500.0,9.798e-05,2]
[347683146,1736057446738,-500.0,9.798e-05,2]
[347683147,1736057446747,-161.91,9.798e-05,2]
[347683148,1736057446756,-184.53,9.798e-05,2]
[347683149,1736057446764,-500.0,9.798e-05,2]
[347683150,1736057446773,-500.0,9.798e-05,2]
[347683151,1736057446782,-1790.18,9.798e-05,2]
[347683152,1736057446792,-769.65339,9.798e-05,2]
[347683153,1736057446801,-500.0,9.798e-05,2]
[347683154,1736057446810,-1014.94,9.798e-05,2]
[347683155,1736057446820,-500.0,9.798e-05,2]
[347683156,1736057446829,-500.0,9.798e-05,2]
[347683157,1736057446838,-500.0,9.798e-05,2]
[347683158,1736057446848,-320.13,9.798e-05,2]
[347683159,1736057446856,-500.0,9.798e-05,2]
[347683160,1736057446866,-500.0,9.798e-05,2]
[347683161,1736057446875,-500.0,9.798e-05,2]
[347683162,1736057446884,-500.0,9.798e-05,2]
[347683163,1736057446895,-64.23189863,9.798e-05,2]
[347683164,1736057446908,-435.76810137,9.798e-05,2]
[347683165,1736057446916,-471.92,9.798e-05,2]
[347683166,1736057446925,-500.0,9.798e-05,2]
[347683167,1736057446935,-594.46247031,9.798e-05,2]
[347683182,1736058635570,-637.68,8.219e-05,2]
[347683183,1736058635582,-250.0,8.976e-05,2]
[347683184,1736058635592,-45.52,8.993e-05,2]
[347683198,1736058637948,-23844.48,8.993e-05,2]
[347683200,1736058637959,-390.27,9.065e-05,2]
[347683201,1736058637968,-1000.0,9.091e-05,2]
[347683202,1736058637977,-150.0,9.173e-05,2]
[347683203,1736058637987,-150.0,9.173e-05,2]
[347683204,1736058637996,-1428.0,9.412e-05,2]
[347683205,1736058638006,-337.84,9.5e-05,2]
[347683206,1736058638015,-3000.0,9.589e-05,2]
[347683207,1736058638024,-664.8485,9.697e-05,2]
[347683208,1736058638033,-5000.0,9.697e-05,2]
[347683209,1736058638042,-3163.0675,9.697e-05,2]
[347683210,1736058638051,-1116.22748198,9.7e-05,2]
[347683211,1736058638060,-1116.22748198,9.7e-05,2]
[347683212,1736058638069,-3581.2102374,9.792e-05,2]
[347683213,1736058638078,-4684.9378927,9.792e-05,2]
[347683214,1736058638087,-1485.4079138,9.792e-05,2]
[347683215,1736058638096,-722.79,9.796e-05,2]
[347683216,1736058638105,-519.49,9.796e-05,2]
[347683217,1736058638115,-500.0,9.796e-05,2]
[347683218,1736058638124,-1056.59,9.796e-05,2]
[347683219,1736058638133,-500.0,9.796e-05,2]
[347683220,1736058638142,-500.0,9.796e-05,2]
[347683221,1736058638151,-670.98,9.796e-05,2]
[347683222,1736058638160,-1824.65,9.796e-05,2]
[347683223,1736058638169,-671.98,9.796e-05,2]
[347683224,1736058638178,-770.27,9.796e-05,2]
[347683225,1736058638189,-1285.95,9.796e-05,2]
[347683226,1736058638197,-1226.32,9.796e-05,2]
[347683227,1736058638207,-874.72,9.796e-05,2]
[347683228,1736058638216,-2050.98,9.796e-05,2]
[347683229,1736058638225,-6258.71,9.796e-05,2]
[347683230,1736058638234,-406.36528246,9.796e-05,2]
[347683231,1736058638243,-500.0,9.796e-05,2]
[347683232,1736058638253,-1615.06,9.796e-05,2]
[347683233,1736058638262,-936.16,9.796e-05,2]
[347683234,1736058638271,-2665.64,9.796e-05,2]
[347683235,1736058638281,-702.55,9.796e-05,2]
[347683236,1736058638291,-4051.89,9.796e-05,2]
[347683238,1736058638300,-1110.91,9.796e-05,2]
[347683240,1736058638309,-500.0,9.796e-05,2]
[347683241,1736058638318,-2404.44,9.796e-05,2]
[347683242,1736058638327,-2550.17,9.796e-05,2]
[347683243,1736058638337,-1667.99,9.796e-05,2]
[347683244,1736058638346,-524.53,9.796e-05,2]
[347683245,1736058638355,-656.75,9.796e-05,2]
[347683246,1736058638364,-2342.39,9.796e-05,2]
[347683247,1736058638374,-2956.06,9.796e-05,2]
[347683248,1736058638383,-613.222347,9.796e-05,2]
[347683249,1736058638392,-500.0,9.796e-05,2]
[347683250,1736058638401,-500.0,9.796e-05,2]
[347683251,1736058638411,-156.211275,9.796e-05,2]
[347683252,1736058638419,-1014.1,9.796e-05,2]
[347683253,1736058638429,-500.0,9.796e-05,2]
[347683254,1736058638439,-500.0,9.796e-05,2]
[347683255,1736058638449,-155.848017,9.796e-05,2]
[347683256,1736058638458,-500.0,9.796e-05,2]
[347683257,1736058638467,-500.0,9.796e-05,2]
[347683258,1736058638477,-281.76,9.796e-05,2]
[347683259,1736058638486,-500.0,9.796e-05,2]
[347683260,1736058638495,-500.0,9.796e-05,2]
[347683261,1736058638504,-500.0,9.796e-05,2]
[347683262,1736058638513,-545.64,9.796e-05,2]
[347683263,1736058638522,-500.0,9.796e-05,2]
[347683264,1736058638531,-500.0,9.796e-05,2]
[347683265,1736058638540,-1715.59,9.796e-05,2]
[347683266,1736058638550,-500.0,9.796e-05,2]
[347683267,1736058638559,-500.0,9.796e-05,2]
[347683268,1736058638568,-500.0,9.796e-05,2]
[347683269,1736058638577,-500.0,9.796e-05,2]
[347683270,1736058638586,-500.0,9.796e-05,2]
[347683271,1736058638594,-500.0,9.797e-05,2]
[347683272,1736058638604,-500.0,9.797e-05,2]
[347683273,1736058638613,-500.0,9.797e-05,2]
[347683274,1736058638621,-500.0,9.797e-05,2]
[347683275,1736058638630,-500.0,9.797e-05,2]
[347683276,1736058638639,-500.0,9.797e-05,2]
[347683277,1736058638648,-500.0,9.797e-05,2]
[347683278,1736058638658,-500.0,9.797e-05,2]
[347683279,1736058638667,-500.0,9.797e-05,2]
[347683280,1736058638676,-515.12,9.797e-05,2]
[347683281,1736058638685,-500.0,9.797e-05,2]
[347683282,1736058638694,-382.64,9.797e-05,2]
[347683283,1736058638703,-334.88,9.797e-05,2]
[347683284,1736058638712,-500.0,9.797e-05,2]
[347683285,1736058638721,-560.26,9.797e-05,2]
[347683286,1736058638731,-500.0,9.797e-05,2]
[347683287,1736058638740,-500.0,9.797e-05,2]
[347683288,1736058638751,-500.0,9.797e-05,2]
[347683289,1736058638759,-620.32,9.797e-05,2]
[347683290,1736058638765,-432.8,9.797e-05,2]
[347683291,1736058638771,-500.0,9.797e-05,2]
[347683292,1736058638778,-500.0,9.797e-05,2]
[347683293,1736058638785,-500.0,9.797e-05,2]
[347683294,1736058638794,-500.0,9.797e-05,2]
[347683295,1736058638803,-356.93,9.797e-05,2]
[347683296,1736058638812,-500.0,9.797e-05,2]
[347683297,1736058638820,-358.48,9.797e-05,2]
[347683298,1736058638829,-500.0,9.797e-05,2]
[347683299,1736058638839,-500.0,9.797e-05,2]
[347683300,1736058638848,-500.0,9.797e-05,2]
[347683301,1736058638857,-635.62,9.797e-05,2]
[347683302,1736058638867,-449.13,9.797e-05,2]
[347683303,1736058638876,-500.0,9.797e-05,2]
[347683304,1736058638885,-500.0,9.797e-05,2]
[347683305,1736058638894,-500.0,9.797e-05,2]
[347683306,1736058638904,-306.54,9.797e-05,2]
[347683307,1736058638914,-500.0,9.797e-05,2]
[347683308,1736058638924,-500.0,9.797e-05,2]
[347683309,1736058638933,-500.0,9.797e-05,2]
[347683310,1736058638942,-500.0,9.797e-05,2]
[347683311,1736058638953,-500.0,9.797e-05,2]
[347683312,1736058638962,-500.0,9.797e-05,2]
[347683313,1736058638971,-500.0,9.797e-05,2]
[347683314,1736058638982,-500.0,9.797e-05,2]
[347683315,1736058638991,-500.0,9.797e-05,2]
[347683316,1736058639002,-500.0,9.797e-05,2]
[347683317,1736058639011,-500.0,9.797e-05,2]
[347683318,1736058639022,-500.0,9.797e-05,2]
[347683319,1736058639031,-403.67,9.797e-05,2]
[347683320,1736058639041,-590.77,9.797e-05,2]
[347683321,1736058639052,-500.0,9.797e-05,2]
[347683322,1736058639061,-500.0,9.797e-05,2]
[347683323,1736058639072,-372.97,9.797e-05,2]
[347683324,1736058639083,-554.78,9.797e-05,2]
[347683325,1736058639094,-500.0,9.797e-05,2]
[347683326,1736058639105,-500.0,9.797e-05,2]
[347683327,1736058639115,-500.0,9.797e-05,2]
[347683328,1736058639126,-238.51,9.797e-05,2]
[347683329,1736058639136,-500.0,9.797e-05,2]
[347683330,1736058639145,-500.0,9.797e-05,2]
[347683331,1736058639154,-568.86,9.797e-05,2]
[347683332,1736058639163,-500.0,9.797e-05,2]
[347683333,1736058639171,-500.0,9.797e-05,2]
[347683334,1736058639179,-500.0,9.797e-05,2]
[347683335,1736058639188,-500.0,9.797e-05,2]
[347683336,1736058639197,-608.63,9.797e-05,2]
[347683337,1736058639207,-500.0,9.797e-05,2]
[347683338,1736058639216,-337.07,9.797e-05,2]
[347683339,1736058639227,-500.0,9.797e-05,2]
[347683340,1736058639236,-500.0,9.797e-05,2]
[347683341,1736058639245,-500.0,9.797e-05,2]
[347683342,1736058639254,-500.0,9.797e-05,2]
[347683343,1736058639263,-500.0,9.797e-05,2]
[347683344,1736058639273,-500.0,9.797e-05,2]
[347683345,1736058639282,-500.0,9.797e-05,2]
[347683346,1736058639291,-500.0,9.797e-05,2]
[347683347,1736058639300,-500.0,9.797e-05,2]
[347683348,1736058639310,-500.0,9.797e-05,2]
[347683349,1736058639319,-500.0,9.797e-05,2]
[347683350,1736058639327,-500.0,9.797e-05,2]
[347683351,1736058639336,-500.0,9.797e-05,2]
[347683352,1736058639346,-500.0,9.797e-05,2]
[347683353,1736058639355,-500.0,9.797e-05,2]
[347683354,1736058639364,-500.0,9.797e-05,2]
[347683355,1736058639373,-500.0,9.797e-05,2]
[347683356,1736058639382,-500.0,9.797e-05,2]
[347683357,1736058639391,-500.0,9.797e-05,2]
[347683358,1736058639400,-500.0,9.797e-05,2]
[347683359,1736058639409,-500.0,9.797e-05,2]
[347683360,1736058639418,-500.0,9.797e-05,2]
[347683361,1736058639427,-500.0,9.797e-05,2]
[347683362,1736058639436,-390.89702807,9.797e-05,2]
[347683363,1736058639444,-500.0,9.797e-05,2]
[347683364,1736058639453,-544.54,9.797e-05,2]
[347683365,1736058639462,-625.5,9.797e-05,2]
[347683366,1736058639471,-517.14,9.797e-05,2]
[347683367,1736058639480,-500.0,9.797e-05,2]
[347683368,1736058639490,-500.0,9.797e-05,2]
[347683369,1736058639499,-500.0,9.797e-05,2]
[347683370,1736058639509,-500.0,9.797e-05,2]
[347683371,1736058639519,-500.0,9.797e-05,2]
[347683372,1736058639528,-500.0,9.797e-05,2]
[347683373,1736058639537,-500.0,9.797e-05,2]
[347683374,1736058639546,-261.7,9.797e-05,2]
[347683375,1736058639555,-500.0,9.797e-05,2]
[347683376,1736058639564,-500.0,9.797e-05,2]
[347683377,1736058639573,-500.0,9.797e-05,2]
[347683378,1736058639583,-500.0,9.797e-05,2]
[347683379,1736058639592,-500.0,9.797e-05,2]
[347683380,1736058639601,-500.0,9.797e-05,2]
[347683381,1736058639610,-367.26,9.797e-05,2]
[347683382,1736058639619,-500.0,9.797e-05,2]
[347683383,1736058639628,-332.42878611,9.797e-05,2]
[347683384,1736058640135,-167.57121389,9.797e-05,2]
[347683385,1736058640145,-500.0,9.797e-05,2]
[347683386,1736058640154,-500.0,9.797e-05,2]
[347683387,1736058640163,-500.0,9.797e-05,2]
[347683388,1736058640173,-500.0,9.797e-05,2]
[347683389,1736058640182,-291.35,9.797e-05,2]
[347683390,1736058640191,-504.27,9.797e-05,2]
[347683391,1736058640200,-500.0,9.797e-05,2]
[347683392,1736058640209,-500.0,9.797e-05,2]
[347683393,1736058640218,-519.9,9.797e-05,2]
[347683394,1736058640227,-554.57343114,9.797e-05,2]
[347683395,1736058640236,-602.19,9.797e-05,2]
[347683396,1736058640246,-542.94,9.797e-05,2]
[347683397,1736058640256,-500.0,9.797e-05,2]
[347683398,1736058640265,-406.25393031,9.797e-05,2]
[347683399,1736058640275,-500.0,9.797e-05,2]
[347683400,1736058640284,-500.0,9.797e-05,2]
[347683401,1736058640294,-500.0,9.797e-05,2]
[347683402,1736058640304,-575.55,9.797e-05,2]
[347683403,1736058640314,-500.0,9.797e-05,2]
[347683404,1736058640325,-500.0,9.797e-05,2]
[347683405,1736058640334,-500.0,9.797e-05,2]
[347683406,1736058640343,-500.0,9.797e-05,2]
[347683407,1736058640354,-500.0,9.797e-05,2]
[347683408,1736058640365,-175.6,9.797e-05,2]
[347683409,1736058640375,-500.0,9.797e-05,2]
[347683410,1736058640384,-500.0,9.797e-05,2]
[347683411,1736058640394,-500.0,9.797e-05,2]
[347683412,1736058640404,-500.0,9.797e-05,2]
[347683413,1736058640415,-500.0,9.797e-05,2]
[347683414,1736058640426,-587.79,9.797e-05,2]
[347683415,1736058640435,-260.51,9.797e-05,2]
[347683417,1736058640445,-500.0,9.797e-05,2]
[347683418,1736058640455,-500.0,9.797e-05,2]
[347683419,1736058640464,-500.0,9.797e-05,2]
[347683420,1736058640473,-616.62,9.797e-05,2]
[347683421,1736058640482,-500.0,9.797e-05,2]
[347683422,1736058640492,-500.0,9.797e-05,2]
[347683423,1736058640501,-500.0,9.797e-05,2]
[347683424,1736058640512,-500.0,9.797e-05,2]
[347683425,1736058640522,-230.97,9.797e-05,2]
[347683426,1736058640531,-500.0,9.797e-05,2]
[347683427,1736058640541,-390.07606969,9.797e-05,2]
[347683428,1736058640550,-500.0,9.797e-05,2]
[347683429,1736058640559,-500.0,9.797e-05,2]
[347683430,1736058640569,-500.0,9.797e-05,2]
[347683431,1736058640578,-500.0,9.797e-05,2]
[347683432,1736058640588,-500.0,9.797e-05,2]
[347683433,1736058640598,-200.11,9.797e-05,2]
[347683434,1736058640608,-500.0,9.797e-05,2]
[347683435,1736058640617,-545.71,9.797e-05,2]
[347683436,1736058640629,-500.0,9.797e-05,2]
[347683437,1736058640639,-500.0,9.797e-05,2]
[347683438,1736058640650,-612.52,9.797e-05,2]
[347683439,1736058640658,-500.0,9.797e-05,2]
[347683440,1736058640667,-500.0,9.797e-05,2]